bitfinex-derivatives/quotes_SOLF0:USTF0_20250329
["timestamp","ask_amount","ask_price","bid_price","bid_amount"]
[1743245158400,14.33298416,126.11,126.08,0.0539499]
[1743245159004,7.9343,126.1,126.08,0.0539499]
[1743245159305,14.33298416,126.11,126.08,0.0539499]
[1743245160803,7.9346,126.09,126.08,0.0539499]
[1743245162605,22.20847331,126.09,126.08,0.0539499]
[1743245163106,17.06970465,126.09,126.08,0.0539499]
[1743245166404,9.13510465,126.09,126.05,62.0]
[1743245166604,9.13510465,126.06,126.0,17.85120465]
[1743245166807,9.13510465,126.04,126.0,37.9961]
[1743245167003,8.3099,126.12,125.98,262.92043198]
[1743245167004,7.9403,126.0,125.98,1.38043198]
[1743245167309,7.9403,126.0,125.97,29.28]
[1743245167709,7.99936688,126.0,125.97,29.33033726]
[1743245167911,7.99936688,126.0,125.97,46.40714191]
[1743245168310,7.9413,125.99,125.97,29.33033726]
[1743245169617,7.9413,125.99,125.98,62.0]
[1743245174517,7.99966688,126.0,125.98,62.0]
[1743245175317,7.9409,125.99,125.98,62.0]
[1743245176218,7.99966688,126.0,125.98,62.0]
[1743245177919,7.9409,125.99,125.98,62.0]
[1743245181123,0.05906688,126.0,125.98,62.0]
[1743245181917,7.9409,125.99,125.98,62.0]
[1743245184818,7.9415,125.98,125.97,0.05033726]
[1743245186322,7.9443,125.94,125.91,29.3]
[1743245186516,7.9443,125.94,125.91,37.2456]
[1743245186921,7.9443,125.94,125.91,29.3]
[1743245187524,8.00530186,125.94,125.91,29.35045504]
[1743245187726,8.00530186,125.94,125.91,37.29605504]
[1743245187926,0.06100186,125.94,125.92,62.0]
[1743245188928,8.00540186,125.94,125.92,71.151189]
[1743245189425,0.06100186,125.94,125.92,79.096389]
[1743245189819,0.06100186,125.94,125.92,62.0]
[1743245190222,7.9447,125.93,125.92,62.0]
[1743245192527,8.00530186,125.94,125.92,62.0]
[1743245193327,0.06100186,125.94,125.92,62.0]
[1743245194034,8.00560186,125.94,125.92,62.0]
[1743245194329,0.06100186,125.94,125.92,62.0]
[1743245194535,7.9447,125.93,125.92,62.0]
[1743245195132,8.00530186,125.94,125.92,62.0]
[1743245196240,7.9447,125.93,125.92,62.0]
[1743245203943,8.00540186,125.94,125.92,62.0]
[1743245204245,0.06100186,125.94,125.93,17.095889]
[1743245205049,0.06100186,125.94,125.93,7.9447]
[1743245207043,0.06100186,125.94,125.92,41.3854]
[1743245207248,9.21219086,125.94,125.92,33.4404]
[1743245207448,0.06100186,125.94,125.93,62.0]
[1743245208549,7.9425,125.97,125.93,71.151189]
[1743245208748,9.151189,125.98,125.93,71.151189]
[1743245209545,7.9428,125.96,125.93,79.095489]
[1743245209746,7.9428,125.96,125.94,0.0507443]
[1743245210349,9.151189,125.96,125.94,0.0507443]
[1743245210649,9.151189,125.95,125.94,0.0507443]
[1743245211145,17.094589,125.95,125.94,0.0507443]
[1743245211344,9.151189,125.95,125.87,4.1597]
[1743245211543,7.9476,125.89,125.86,7.9488]
[1743245211748,9.151189,125.89,125.85,66.2893236]
[1743245212152,7.9482,125.88,125.85,74.2387236]
[1743245212448,9.21176,125.88,125.85,66.34198052]
[1743245212647,0.060571,125.88,125.86,17.099689]
[1743245212950,0.060571,125.88,125.87,62.0]
[1743245213346,0.060571,125.88,125.87,71.151189]
[1743245213943,0.060571,125.88,125.87,79.099689]
[1743245214149,9.151189,125.94,125.87,71.151189]
[1743245214451,9.151189,125.94,125.89,9.151189]
[1743245215254,0.06060509,125.93,125.9,0.0502991]
[1743245215446,9.21179409,125.93,125.9,0.0502991]
[1743245215647,9.21179409,125.93,125.9,7.9964991]
[1743245215847,0.06060509,125.93,125.9,0.0502991]
[1743245216048,0.06060509,125.93,125.91,29.28]
[1743245216247,0.06060509,125.93,125.91,37.2257]
[1743245216451,0.06060509,125.93,125.91,29.28]
[1743245216852,8.00570509,125.93,125.91,29.28]
[1743245217452,7.9453,125.92,125.9,0.0502991]
[1743245217956,0.06060509,125.93,125.9,0.0502991]
[1743245219160,0.06060509,125.93,125.91,29.28]
[1743245221661,8.00560509,125.93,125.91,29.28]
[1743245222168,0.06060509,125.93,125.9,0.0502991]
[1743245223364,7.9457,125.92,125.9,0.0502991]
[1743245223556,0.06060509,125.93,125.9,0.0502991]
[1743245224663,7.9453,125.92,125.9,0.0502991]
[1743245224857,0.06060509,125.93,125.9,0.0502991]
[1743245225267,8.00570509,125.93,125.9,7.9965991]
[1743245225663,0.06060509,125.93,125.9,7.9965991]
[1743245225867,7.9456,125.92,125.9,0.0502991]
[1743245226073,14.36422866,125.93,125.9,0.0502991]
[1743245226766,7.9459,125.91,125.9,0.0502991]
[1743245227465,22.24952357,125.91,125.9,0.0502991]
[1743245227869,14.30362357,125.91,125.84,29.28]
[1743245228065,14.30362357,125.89,125.84,29.28]
[1743245229068,14.30362357,125.87,125.85,0.05009855]
[1743245229763,14.30362357,125.87,125.83,32.9285236]
[1743245229764,29.28,125.86,125.82,83.54338882]
[1743245229969,14.30362357,125.84,125.82,31.78318882]
[1743245230265,14.30362357,125.84,125.78,83.07740403]
[1743245230769,0.05773163,125.82,125.8,0.05561102]
[1743245231169,7.9527,125.81,125.8,0.05561102]
[1743245232466,14.3613552,125.82,125.78,53.79740403]
[1743245232467,7.9535,125.79,125.78,53.79740403]
[1743245232666,14.30362357,125.79,125.77,4.63758882]
[1743245232871,7.9542,125.78,125.77,4.63758882]
[1743245233469,14.30362357,125.79,125.76,131.98336158]
[1743245233673,14.30362357,125.77,125.75,213.92208819]
[1743245233867,7.9554,125.76,125.74,267.40261024]
[1743245234072,14.30362357,125.77,125.7,33.2789]
[1743245234274,14.30362357,125.79,125.71,14.30362357]
[1743245234474,14.30362357,125.81,125.73,14.30362357]
[1743245234777,43.60362357,125.85,125.75,14.30362357]
[1743245234976,0.05482186,125.78,125.76,95.49578161]
[1743245235174,14.30362357,125.83,125.76,95.4538]
[1743245235475,8.00705477,125.78,125.76,95.49578161]
[1743245235676,7.9545,125.78,125.76,95.4538]
[1743245235877,8.01124338,125.78,125.76,91.34198161]
[1743245236177,0.05674338,125.78,125.76,91.34198161]
[1743245236872,8.01134338,125.78,125.76,91.34198161]
[1743245237676,0.05674338,125.78,125.76,91.34198161]
[1743245238173,8.01094338,125.78,125.76,91.34198161]
[1743245238374,0.05674338,125.78,125.76,91.34198161]
[1743245238772,8.01104338,125.78,125.76,62.04198161]
[1743245240280,7.9548,125.77,125.76,62.04198161]
[1743245240474,0.05674338,125.78,125.76,62.04198161]
[1743245241079,8.01144338,125.78,125.76,62.04198161]
[1743245242678,0.05674338,125.78,125.76,62.04198161]
[1743245243980,0.05674338,125.78,125.77,7.9548]
[1743245244181,14.30362357,125.85,125.77,14.30362357]
[1743245244484,22.25352357,125.85,125.81,7.9517]
[1743245244684,14.30362357,125.85,125.81,29.3]
[1743245245083,7.9494,125.86,125.82,7.9511]
[1743245245286,0.05068982,125.84,125.82,0.05073455]
[1743245246681,8.00138982,125.84,125.82,0.05073455]
[1743245246884,0.05068982,125.84,125.82,0.05073455]
[1743245247088,14.30362357,125.83,125.73,18.48712357]
[1743245247281,7.99068982,125.84,125.73,18.48712357]
[1743245247282,14.30362357,125.81,125.74,29.3]
[1743245248086,14.30362357,125.79,125.74,7.9563]
[1743245248287,14.30362357,125.79,125.77,0.04799044]
[1743245248488,7.9546,125.78,125.77,0.04799044]
[1743245249294,7.9538,125.79,125.77,0.04799044]
[1743245249690,0.06076623,125.8,125.77,0.04799044]
[1743245250398,8.01396623,125.8,125.77,0.04799044]
[1743245250691,0.06076623,125.8,125.77,0.04799044]
[1743245251792,0.06076623,125.8,125.78,69.9536]
[1743245252097,10.93301215,125.84,125.79,29.3]
[1743245252285,10.93301215,125.84,125.79,33.6284]
[1743245252490,364.0,125.86,125.79,33.6284]
[1743245252685,7.952,125.82,125.79,41.5816]
[1743245253095,7.9526,125.81,125.79,33.6284]
[1743245253292,0.05026575,125.82,125.79,33.68836644]
[1743245253691,0.05026575,125.82,125.79,33.68893835]
[1743245254397,0.05026575,125.82,125.8,7.9529]
[1743245254793,0.05026575,125.82,125.79,33.68893835]
[1743245255295,0.05026575,125.82,125.8,62.0]
[1743245256099,7.9523,125.81,125.8,62.0]
[1743245256999,22.98008785,125.82,125.79,0.06053835]
[1743245259190,7.9529,125.8,125.79,0.06053835]
[1743245260000,52.2298221,125.8,125.76,62.0]
[1743245260202,22.9298221,125.78,125.7,29.3]
[1743245260697,7.958,125.72,125.7,29.3]
[1743245261099,8.01784007,125.72,125.7,29.34821832]
[1743245261499,0.05984007,125.72,125.7,29.34821832]
[1743245262304,0.05984007,125.72,125.7,0.04821832]
[1743245262501,0.05984007,125.72,125.7,29.34821832]
[1743245263102,0.05984007,125.72,125.71,62.0]
[1743245263503,22.9298221,125.8,125.71,62.0]
[1743245264504,0.05311488,125.77,125.74,0.05338003]
[1743245265703,8.00801488,125.77,125.74,0.05338003]
[1743245266202,7.9555,125.76,125.74,0.05338003]
[1743245266800,7.9561,125.75,125.74,0.05338003]
[1743245267710,7.9561,125.75,125.74,62.05338003]
[1743245268008,0.05311488,125.77,125.74,62.05338003]
[1743245268806,0.05311488,125.77,125.74,91.35338003]
[1743245269205,8.00791488,125.77,125.74,99.30968003]
[1743245269509,0.05311488,125.77,125.74,99.30968003]
[1743245269697,8.00831488,125.77,125.74,91.35338003]
[1743245270099,0.05311488,125.77,125.74,62.05338003]
[1743245270305,7.9557,125.76,125.74,62.05338003]
[1743245270503,0.05311488,125.77,125.74,0.05338003]
[1743245270907,7.9561,125.75,125.74,0.05338003]
[1743245275216,7.9557,125.76,125.74,0.05338003]
[1743245275515,7.9557,125.76,125.74,8.00998003]
[1743245275713,8.00811488,125.77,125.74,8.00998003]
[1743245276305,8.00811488,125.77,125.75,7.956]
[1743245276505,0.05311488,125.77,125.75,7.956]
[1743245277110,8.00791488,125.77,125.74,12.21798003]
[1743245277312,8.00791488,125.77,125.74,4.26158003]
[1743245277916,8.00791488,125.77,125.74,12.21798003]
[1743245278113,0.05311488,125.77,125.74,4.26158003]
[1743245278319,7.9555,125.76,125.74,4.26158003]
[1743245278714,8.00821488,125.77,125.74,4.26158003]
[1743245279015,8.00821488,125.77,125.74,12.21808003]
[1743245279416,7.9556,125.76,125.74,4.26158003]
[1743245279709,0.05311488,125.77,125.74,4.26158003]
[1743245280016,0.05311488,125.77,125.74,0.05338003]
[1743245280918,7.9561,125.75,125.74,0.05338003]
[1743245281421,7.9558,125.76,125.74,0.05338003]
[1743245281614,0.05311488,125.77,125.74,0.05338003]
[1743245282222,7.9561,125.75,125.74,0.05338003]
[1743245283815,14.40048941,125.77,125.74,0.05338003]
[1743245284221,7.9561,125.75,125.74,0.05338003]
[1743245293536,0.05311488,125.77,125.74,29.35338003]
[1743245294531,14.40048941,125.77,125.74,0.05338003]
[1743245294940,7.9561,125.75,125.74,0.05338003]
[1743245296039,0.05311488,125.77,125.74,0.05338003]
[1743245296432,7.9559,125.76,125.74,0.05338003]
[1743245296935,14.40048941,125.77,125.74,0.05338003]
[1743245297135,7.9561,125.75,125.74,0.05338003]
[1743245297833,0.05311488,125.77,125.74,0.05338003]
[1743245298537,7.9558,125.76,125.74,0.05338003]
[1743245299139,8.00831488,125.77,125.74,8.01008003]
[1743245299937,0.05311488,125.77,125.75,7.9557]
[1743245300530,0.05311488,125.77,125.74,8.00978003]
[1743245300740,0.05311488,125.77,125.74,0.05338003]
[1743245300942,8.00821488,125.77,125.74,8.00958003]
[1743245301140,8.00821488,125.77,125.74,0.05338003]
[1743245301639,8.00821488,125.77,125.74,8.00968003]
[1743245301840,0.05311488,125.77,125.75,29.28]
[1743245302040,0.05311488,125.77,125.75,37.2357]
[1743245303034,0.05311488,125.77,125.76,7.9554]
[1743245303238,43.80436856,125.8,125.75,29.28]
[1743245303636,7.9546,125.78,125.75,37.2357]
[1743245304139,43.80436856,125.8,125.75,29.28]
[1743245304341,8.00909704,125.78,125.75,29.28]
[1743245304839,8.00899704,125.78,125.75,37.29478632]
[1743245305443,0.05449704,125.78,125.76,7.9554]
[1743245306043,8.00879704,125.78,125.75,37.29478632]
[1743245307742,7.9549,125.77,125.75,37.29478632]
[1743245307943,0.05449704,125.78,125.75,37.29478632]
[1743245308344,8.00899704,125.78,125.75,37.29478632]
[1743245308543,0.05449704,125.78,125.75,37.29478632]
[1743245308744,0.05449704,125.78,125.75,29.33898632]
[1743245308944,7.9554,125.76,125.75,0.05898632]
[1743245309145,0.05449704,125.78,125.75,0.05898632]
[1743245309543,7.9551,125.77,125.75,0.05898632]
[1743245310540,7.9554,125.76,125.75,0.05898632]
[1743245312245,7.955,125.77,125.75,0.05898632]
[1743245313246,7.9554,125.76,125.75,0.05898632]
[1743245317849,7.9551,125.77,125.75,8.01498632]
[1743245318650,0.05449704,125.78,125.76,7.9549]
[1743245318943,0.05449704,125.78,125.76,9.17689085]
[1743245319138,0.05449704,125.78,125.77,7.9548]
[1743245321348,0.05449704,125.78,125.77,17.13169085]
[1743245321750,52.98125941,125.83,125.79,7.953]
[1743245321938,7.9519,125.82,125.79,17.12989085]
[1743245322649,7.9523,125.81,125.79,17.12989085]
[1743245322845,0.05553227,125.82,125.8,9.17689085]
[1743245323447,0.05553227,125.82,125.81,9.17689085]
[1743245324251,8.00713227,125.82,125.81,9.17689085]
[1743245324451,8.00713227,125.82,125.79,46.46889349]
[1743245324946,9.23242312,125.82,125.79,29.33880264]
[1743245325151,9.17689085,125.8,125.79,0.05880264]
[1743245325552,17.12979085,125.8,125.79,0.05880264]
[1743245326856,7.9529,125.8,125.79,0.05880264]
[1743245331460,0.05553227,125.82,125.79,0.05880264]
[1743245331961,0.05553227,125.82,125.8,7.9528]
[1743245332156,0.05553227,125.82,125.79,0.05880264]
[1743245332556,0.05553227,125.82,125.8,7.9526]
[1743245334054,8.00713227,125.82,125.79,8.01200264]
[1743245334458,0.05553227,125.82,125.79,0.05880264]
[1743245334864,14.39047209,125.82,125.79,0.05880264]
[1743245335961,0.05553227,125.82,125.79,0.05880264]
[1743245336362,7.9526,125.81,125.79,0.05880264]
[1743245337362,0.05553227,125.82,125.79,0.05880264]
[1743245337758,0.05553227,125.82,125.8,7.9523]
[1743245338667,0.05553227,125.82,125.79,0.05880264]
[1743245339266,0.05553227,125.82,125.8,7.9525]
[1743245339562,0.05553227,125.82,125.79,0.05880264]
[1743245339768,0.05553227,125.82,125.8,29.26]
[1743245339965,0.05553227,125.82,125.8,43.59493982]
[1743245340561,0.05553227,125.82,125.8,51.54753982]
[1743245340871,0.05553227,125.82,125.8,37.2126]
[1743245341264,58.13930838,125.87,125.81,7.9523]
[1743245341767,58.13930838,125.87,125.8,47.61773982]
[1743245341768,7.95,125.85,125.8,47.61773982]
[1743245341968,43.80436856,125.87,125.82,14.33493982]
[1743245342167,43.80436856,125.87,125.83,29.26]
[1743245342570,0.05363332,125.86,125.84,14.3890649]
[1743245342869,0.05363332,125.86,125.84,22.3391649]
[1743245343265,0.05363332,125.86,125.84,14.3890649]
[1743245343571,10.93301215,125.88,125.85,7.9497]
[1743245343764,10.93301215,125.88,125.86,29.26]
[1743245343965,10.93301215,125.88,125.86,37.2091]
[1743245344568,10.98689528,125.88,125.86,37.2091]
[1743245345365,10.98689528,125.88,125.86,29.26]
[1743245345566,10.98689528,125.88,125.84,0.05412508]
[1743245346267,7.9497,125.85,125.84,0.05412508]
[1743245346473,10.98689528,125.88,125.84,0.05412508]
[1743245347075,10.98689528,125.88,125.84,8.00422508]
[1743245347474,10.98689528,125.88,125.84,0.05412508]
[1743245347674,7.9486,125.87,125.84,0.05412508]
[1743245348772,7.9486,125.87,125.85,62.0]
[1743245349174,0.05388313,125.88,125.85,62.0]
[1743245349771,7.9486,125.87,125.85,62.0]
[1743245349975,0.05388313,125.88,125.85,62.0]
[1743245350373,7.9485,125.87,125.85,62.0]
[1743245350579,0.05388313,125.88,125.84,0.05412508]
[1743245351985,7.9489,125.87,125.84,0.05412508]
[1743245352174,0.05388313,125.88,125.84,0.05412508]
[1743245352374,0.05388313,125.88,125.85,29.24]
[1743245352976,8.00208313,125.88,125.85,37.1894]
[1743245353380,0.05388313,125.88,125.85,29.24]
[1743245353585,7.9485,125.87,125.86,62.0]
[1743245355180,8.00198313,125.88,125.86,62.0]
[1743245355382,0.05388313,125.88,125.86,62.0]
[1743245356183,8.00198313,125.88,125.86,62.0]
[1743245356680,0.05388313,125.88,125.87,7.9485]
[1743245356990,10.93301215,125.94,125.86,14.33493982]
[1743245357182,10.93301215,125.94,125.89,7.9467]
[1743245357382,10.93301215,125.94,125.9,29.24]
[1743245357977,0.05080479,125.93,125.91,0.05372612]
[1743245358378,0.05080479,125.93,125.91,8.47062612]
[1743245358585,0.05080479,125.93,125.92,7.9453]
[1743245360087,0.05080479,125.93,125.92,69.9453]
[1743245361387,0.05080479,125.93,125.92,62.0]
[1743245361588,0.05080479,125.93,125.92,91.22]
[1743245362185,0.05080479,125.93,125.92,62.0]
[1743245363691,0.05080479,125.93,125.92,69.9453]
[1743245366098,0.05080479,125.93,125.92,62.0]
[1743245367694,0.05080479,125.93,125.91,0.05372612]
[1743245367998,7.99580479,125.93,125.91,0.05372612]
[1743245368298,0.05080479,125.93,125.91,0.05372612]
[1743245369895,0.05080479,125.93,125.92,29.22]
[1743245370298,7.9418,125.98,125.92,29.22]
[1743245370492,7.9418,125.98,125.93,62.0]
[1743245370999,7.9418,125.98,125.93,76.33493982]
[1743245371401,7.9423,125.97,125.93,84.27923982]
[1743245371603,7.99861985,125.97,125.94,0.05743987]
[1743245371998,0.05631985,125.97,125.94,0.05743987]
[1743245373007,7.9434,125.95,125.94,0.05743987]
[1743245376407,7.9434,125.95,125.94,3.987e-05]
[1743245379000,7.99861985,125.97,125.94,7.94383987]
[1743245379200,7.99861985,125.97,125.95,29.2]
[1743245379811,0.05631985,125.97,125.95,29.2]
[1743245380209,0.05631985,125.97,125.95,37.1433]
[1743245381510,7.99871985,125.97,125.95,29.2]
[1743245382112,7.99871985,125.97,125.96,62.0]
[1743245385606,0.05631985,125.97,125.94,3.987e-05]
[1743245386012,7.9433,125.96,125.94,3.987e-05]
[1743245388414,7.9433,125.96,125.95,62.0]
[1743245388716,7.9434,125.95,125.94,3.987e-05]
[1743245391314,0.05631985,125.97,125.94,3.987e-05]
[1743245391509,0.05631985,125.97,125.94,17.09404697]
[1743245391818,0.05631985,125.97,125.95,62.0]
[1743245392017,7.99881985,125.97,125.95,62.0]
[1743245394422,0.05631985,125.97,125.95,69.9429]
[1743245395721,0.05631985,125.97,125.95,79.0932071]
[1743245396520,7.99851985,125.97,125.95,71.1503071]
[1743245397412,0.05631985,125.97,125.95,79.0936071]
[1743245398214,0.05631985,125.97,125.96,17.0931071]
[1743245399017,0.05631985,125.97,125.96,7.9428]
[1743245399323,0.05631985,125.97,125.95,71.1503071]
[1743245400126,0.05631985,125.97,125.95,79.0933071]
[1743245402619,7.99891985,125.97,125.95,62.0]
[1743245402819,0.05631985,125.97,125.95,62.0]
[1743245403721,0.05631985,125.97,125.95,69.9434]
[1743245404021,0.05631985,125.97,125.96,9.1503071]
[1743245404220,7.9405,126.0,125.97,17.0920071]
[1743245404417,18.87351215,126.0,125.97,46.2920071]
[1743245405126,7.941,125.99,125.97,46.2920071]
[1743245405326,10.99262612,126.0,125.97,38.4021037]
[1743245405524,7.9409,125.99,125.97,38.4021037]
[1743245405923,10.99262612,126.0,125.97,38.4021037]
[1743245406123,18.93322612,126.0,125.97,38.4021037]
[1743245406325,18.93322612,126.0,125.97,46.3441037]
[1743245406523,10.99262612,126.0,125.97,38.4021037]
[1743245407125,0.05961397,126.0,125.97,38.4021037]
[1743245407524,7.9409,125.99,125.97,38.4021037]
[1743245408731,7.9409,125.99,125.97,46.3442037]
[1743245408932,7.9409,125.99,125.97,38.4021037]
[1743245409231,17.0918071,125.98,125.97,0.0517966]
[1743245409431,9.1503071,125.98,125.92,21.3106071]
[1743245409631,7.9435,125.95,125.92,21.3106071]
[1743245410033,7.9442,125.94,125.92,13.3656071]
[1743245410633,7.99575866,125.94,125.92,13.42045965]
[1743245411332,0.05155866,125.94,125.92,21.36565965]
[1743245411635,0.05155866,125.94,125.92,13.42045965]
[1743245411834,7.99595866,125.94,125.92,4.27015255]
[1743245412135,7.99595866,125.94,125.92,13.42045965]
[1743245412341,7.99595866,125.94,125.93,62.0]
[1743245412835,0.05155866,125.94,125.93,62.0]
[1743245413129,0.05155866,125.94,125.93,71.1503071]
[1743245413834,0.05155866,125.94,125.93,62.0]
[1743245414133,7.99565866,125.94,125.93,62.0]
[1743245414433,0.05155866,125.94,125.93,62.0]
[1743245414634,0.05155866,125.94,125.93,71.1503071]
[1743245414834,0.05155866,125.94,125.93,79.0950071]
[1743245415034,10.93301215,125.98,125.93,100.3303071]
[1743245415235,18.87501215,125.98,125.94,9.1503071]
[1743245415436,10.93301215,125.98,125.94,17.0939071]
[1743245415636,7.9425,125.97,125.94,17.0939071]
[1743245416338,7.9429,125.96,125.94,0.05435945]
[1743245417234,7.99392133,125.97,125.94,0.05435945]
[1743245417430,7.99392133,125.97,125.94,7.99825945]
[1743245418235,0.05142133,125.97,125.94,0.05435945]
[1743245418440,0.05142133,125.97,125.95,62.0]
[1743245418839,7.9428,125.96,125.95,62.0]
[1743245420135,7.99392133,125.97,125.95,62.0]
[1743245420639,0.05142133,125.97,125.95,62.0]
[1743245421638,7.99382133,125.97,125.95,62.0]
[1743245422942,7.9428,125.96,125.95,62.0]
[1743245423444,9.1503071,125.96,125.94,0.05435945]
[1743245423637,9.1503071,125.95,125.94,0.05435945]
[1743245424732,17.0937071,125.95,125.94,0.05435945]
[1743245429845,43.85578989,125.97,125.94,9.20466655]
[1743245430234,18.92703348,125.97,125.94,9.20466655]
[1743245430740,10.98443348,125.97,125.94,9.20466655]
[1743245431641,10.98443348,125.97,125.95,17.0934071]
[1743245431945,10.98443348,125.97,125.95,9.1503071]
[1743245432445,0.05142133,125.97,125.95,9.1503071]
[1743245432947,0.05142133,125.97,125.96,62.0]
[1743245434845,0.05142133,125.97,125.96,69.9428]
[1743245435441,9.20172843,125.97,125.94,0.05435945]
[1743245435641,9.1503071,125.96,125.94,0.05435945]
[1743245435850,9.20172843,125.97,125.94,0.05435945]
[1743245436040,0.05142133,125.97,125.94,0.05435945]
[1743245436243,0.05142133,125.97,125.94,7.99805945]
[1743245437744,7.99392133,125.97,125.94,7.99805945]
[1743245437941,0.05142133,125.97,125.94,0.05435945]
[1743245438550,7.9429,125.96,125.95,62.0]
[1743245439246,7.9429,125.96,125.94,0.05435945]
[1743245439848,0.05142133,125.97,125.94,9.20466655]
[1743245440047,0.05142133,125.97,125.95,38.3303071]
[1743245440255,7.99402133,125.97,125.95,29.18]
[1743245440652,7.99402133,125.97,125.94,0.05435945]
[1743245440848,0.05142133,125.97,125.94,7.99815945]
[1743245441048,0.05142133,125.97,125.95,9.1503071]
[1743245441452,0.05142133,125.97,125.95,17.0934071]
[1743245441954,0.05142133,125.97,125.95,9.1503071]
[1743245442253,0.05142133,125.97,125.96,62.0]
[1743245443653,0.05142133,125.97,125.96,69.9428]
[1743245444251,0.05142133,125.97,125.96,62.0]
[1743245444955,0.05142133,125.97,125.96,69.9428]
[1743245445456,0.05142133,125.97,125.96,79.0931071]
[1743245445651,52.95467566,126.01,125.98,7.9413]
[1743245445847,60.89467566,126.01,125.98,7.9413]
[1743245446556,28.02331925,126.01,125.98,7.9413]
[1743245446756,28.08209199,126.01,125.98,7.99325399]
[1743245448559,28.08209199,126.01,125.98,0.05195399]
[1743245449259,17.14907984,126.01,125.98,0.05195399]
[1743245449854,7.9404,126.0,125.98,0.05195399]
[1743245450055,9.20907984,126.01,125.98,0.05195399]
[1743245450459,7.9409,125.99,125.98,0.05195399]
[1743245451165,7.9406,126.0,125.98,0.05195399]
[1743245451964,9.20907984,126.01,125.98,0.05195399]
[1743245452564,7.9409,126.0,125.98,0.05195399]
[1743245458371,7.99877274,126.01,125.98,7.99315399]
[1743245458773,0.05877274,126.01,125.98,0.05195399]
[1743245458972,7.9403,126.0,125.98,0.05195399]
[1743245460673,7.9403,126.0,125.98,7.99345399]
[1743245461067,7.9403,126.0,125.98,0.05195399]
[1743245462773,7.99877274,126.01,125.98,7.99345399]
[1743245464368,7.9403,126.0,125.98,0.05195399]
[1743245465872,9.1503071,125.99,125.94,4.1004]
[1743245466074,9.1503071,125.96,125.94,4.1004]
[1743245466276,7.9444,125.94,125.9,37.1062]
[1743245466475,7.9444,125.94,125.91,9.1503071]
[1743245466974,9.1503071,125.95,125.91,9.1503071]
[1743245466975,7.9447,125.93,125.91,9.1503071]
[1743245467177,9.1503071,125.93,125.91,0.0540275]
[1743245467374,9.1503071,125.92,125.91,0.0540275]
[1743245467578,17.0956071,125.92,125.91,0.0540275]
[1743245468779,7.9463,125.91,125.87,46.2586071]
[1743245469079,9.1503071,125.93,125.89,9.1503071]
[1743245469582,17.0951071,125.93,125.89,17.0971071]
[1743245469777,0.05960081,125.92,125.91,9.1503071]
[1743245469979,9.1503071,125.96,125.91,38.3103071]
[1743245470179,0.05613762,125.93,125.91,38.3103071]
[1743245470474,38.3103071,125.98,125.92,9.1503071]
[1743245470679,60.89577566,125.99,125.95,17.0933071]
[1743245470876,51.74546856,125.99,125.96,9.1503071]
[1743245471076,51.74546856,125.99,125.95,9.1503071]
[1743245471277,9.1503071,125.98,125.94,38.3103071]
[1743245471477,43.80436856,125.97,125.94,38.3103071]
[1743245471782,43.85879295,125.97,125.95,8.00286297]
[1743245472177,43.85879295,125.97,125.95,0.05946297]
[1743245472477,43.85879295,125.97,125.96,62.0]
[1743245472879,51.80099295,125.97,125.96,62.0]
[1743245473471,43.85879295,125.97,125.96,62.0]
[1743245474579,0.05442439,125.97,125.96,62.0]
[1743245476278,9.20473149,125.97,125.95,0.05946297]
[1743245476880,17.0931071,125.96,125.95,0.05946297]
[1743245477184,9.1503071,125.96,125.89,9.1503071]
[1743245477382,7.9463,125.91,125.89,9.1503071]
[1743245478283,8.00475914,125.91,125.89,9.20708907]
[1743245478885,7.9466,125.9,125.89,0.05678197]
[1743245479282,7.9466,125.9,125.89,62.05678197]
[1743245480687,8.00465914,125.91,125.89,62.05678197]
[1743245480980,0.05845914,125.91,125.89,62.05678197]
[1743245481575,0.05845914,125.91,125.89,70.00358197]
[1743245482180,0.05845914,125.91,125.89,62.05678197]
[1743245485583,0.05845914,125.91,125.89,70.00388197]
[1743245485986,0.05845914,125.91,125.89,62.05678197]
[1743245486286,0.05845914,125.91,125.89,76.36699828]
[1743245486590,0.05845914,125.91,125.9,7.9466]
[1743245489785,364.0,125.9,125.73,139.83439758]
[1743245489990,14.31021631,125.81,125.74,5.63978652]
[1743245490192,14.31021631,125.81,125.75,1.44078652]
[1743245490495,7.9536,125.79,125.74,4.199]
[1743245490694,14.31021631,125.81,125.74,4.199]
[1743245490888,0.055327,125.78,125.75,0.05034189]
[1743245491085,7.9549,125.77,125.75,0.05034189]
[1743245491491,0.055327,125.78,125.75,0.05034189]